[Event "Early-Titled-Tuesday-Blitz-January-30-2024"]
[Site "Chess.com"]
[Date "2024.01.30"]
[Round "6"]
[White "carloseduar100"]
[Black "nindjaxx8"]
[Result "0-1"]
[WhiteElo "2278"]
[BlackElo "2589"]
[TimeControl "180+1"]
[EndTime "9:10:00 PST"]
[Termination "nindjaxx8 won by checkmate"]

1. d4 {[%clk 0:03:00.2]} 1... d5 {[%clk 0:02:59.7]} 2. c3 {[%clk 0:02:53.6]}
2... Nf6 {[%clk 0:02:58.9]} 3. Bg5 {[%clk 0:02:53.4]} 3... Bf5 {[%clk
0:02:59.1]} 4. Nf3 {[%clk 0:02:53.3]} 4... e6 {[%clk 0:02:57.6]} 5. Nbd2 {[%clk
0:02:52.5]} 5... Nbd7 {[%clk 0:02:58.2]} 6. g3 {[%clk 0:02:51.4]} 6... Be7
{[%clk 0:02:56.6]} 7. Bg2 {[%clk 0:02:51.6]} 7... O-O {[%clk 0:02:56.6]} 8. O-O
{[%clk 0:02:51.6]} 8... c5 {[%clk 0:02:55.1]} 9. a3 {[%clk 0:02:50.2]} 9... c4
{[%clk 0:02:54.6]} 10. Re1 {[%clk 0:02:49.9]} 10... Ne4 {[%clk 0:02:52.8]} 11.
Bxe7 {[%clk 0:02:49.4]} 11... Qxe7 {[%clk 0:02:52.6]} 12. Nxe4 {[%clk
0:02:47.8]} 12... Bxe4 {[%clk 0:02:53.5]} 13. Nd2 {[%clk 0:02:48.2]} 13... Bxg2
{[%clk 0:02:53.2]} 14. Kxg2 {[%clk 0:02:49.1]} 14... f5 {[%clk 0:02:53.5]} 15.
f3 {[%clk 0:02:48.6]} 15... Rf7 {[%clk 0:02:52.2]} 16. e4 {[%clk 0:02:48]} 16...
fxe4 {[%clk 0:02:53.1]} 17. fxe4 {[%clk 0:02:47.5]} 17... Raf8 {[%clk
0:02:53.8]} 18. exd5 {[%clk 0:02:44.9]} 18... Rf2+ {[%clk 0:02:53.8]} 19. Kg1
{[%clk 0:02:45.3]} 19... e5 {[%clk 0:02:32]} 20. Ne4 {[%clk 0:02:23.1]} 20...
Rxb2 {[%clk 0:02:27.9]} 21. Re2 {[%clk 0:02:04.6]} 21... Rb6 {[%clk 0:01:50.4]}
22. Rf2 {[%clk 0:01:11.7]} 22... Rxf2 {[%clk 0:00:51.7]} 23. Nxf2 {[%clk
0:01:12.6]} 23... Rb2 {[%clk 0:00:47.9]} 24. Qf1 {[%clk 0:01:04.1]} 24... exd4
{[%clk 0:00:45.4]} 25. cxd4 {[%clk 0:01:01.9]} 25... Qe3 {[%clk 0:00:35.9]} 26.
Rd1 {[%clk 0:00:58.1]} 26... Nf6 {[%clk 0:00:29.2]} 27. d6 {[%clk 0:00:53.8]}
27... Ng4 {[%clk 0:00:23.3]} 28. Qxc4+ {[%clk 0:00:49.9]} 28... Kf8 {[%clk
0:00:17]} 29. Qc8+ {[%clk 0:00:49.6]} 29... Kf7 {[%clk 0:00:15.8]} 30. Qd7+
{[%clk 0:00:50.1]} 30... Kf6 {[%clk 0:00:09.5]} 31. Rf1 {[%clk 0:00:48.9]} 31...
Nxf2 {[%clk 0:00:06]} 32. Qd8+ {[%clk 0:00:36.4]} 32... Kg6 {[%clk 0:00:06.3]}
33. Qe7 {[%clk 0:00:25.6]} 33... Nh3+ {[%clk 0:00:02.5]} 34. Kh1 {[%clk
0:00:22]} 34... Qxe7 {[%clk 0:00:03.1]} 35. dxe7 {[%clk 0:00:22]} 35... Re2
{[%clk 0:00:03.8]} 36. d5 {[%clk 0:00:15.5]} 36... Rxe7 {[%clk 0:00:04.1]} 37.
Re1 {[%clk 0:00:15.8]} 37... Rd7 {[%clk 0:00:04.8]} 38. Re6+ {[%clk 0:00:15.3]}
38... Kf5 {[%clk 0:00:04.8]} 39. Re3 {[%clk 0:00:13.7]} 39... Ng5 {[%clk
0:00:05.1]} 40. Kg2 {[%clk 0:00:14.6]} 40... Rxd5 {[%clk 0:00:05.3]} 41. Rb3
{[%clk 0:00:14.9]} 41... Rd7 {[%clk 0:00:05.4]} 42. a4 {[%clk 0:00:15.2]} 42...
h5 {[%clk 0:00:05.6]} 43. h4 {[%clk 0:00:15.5]} 43... Ne6 {[%clk 0:00:05.2]} 44.
a5 {[%clk 0:00:15.4]} 44... a6 {[%clk 0:00:04.7]} 45. Kh3 {[%clk 0:00:15.5]}
45... Nd4 {[%clk 0:00:04.7]} 46. Rb6 {[%clk 0:00:15.5]} 46... Nc6 {[%clk
0:00:04.8]} 47. Rb3 {[%clk 0:00:14.9]} 47... Nxa5 {[%clk 0:00:04.7]} 48. Rf3+
{[%clk 0:00:14.4]} 48... Kg6 {[%clk 0:00:05.2]} 49. g4 {[%clk 0:00:13.7]} 49...
hxg4+ {[%clk 0:00:04.5]} 50. Kxg4 {[%clk 0:00:14.3]} 50... Nc6 {[%clk 0:00:05]}
51. h5+ {[%clk 0:00:14.3]} 51... Kh7 {[%clk 0:00:05.6]} 52. Kh4 {[%clk
0:00:13.7]} 52... b5 {[%clk 0:00:05.7]} 53. Rf8 {[%clk 0:00:13]} 53... Rb7
{[%clk 0:00:05.4]} 54. Ra8 {[%clk 0:00:13.3]} 54... b4 {[%clk 0:00:05.3]} 55.
Rxa6 {[%clk 0:00:13.4]} 55... Ne5 {[%clk 0:00:05.7]} 56. Kg5 {[%clk 0:00:10.1]}
56... b3 {[%clk 0:00:05.4]} 57. h6 {[%clk 0:00:10.1]} 57... Nf7+ {[%clk
0:00:05.8]} 58. Kh5 {[%clk 0:00:10]} 58... Nxh6 {[%clk 0:00:06.7]} 59. Ra1
{[%clk 0:00:09.9]} 59... b2 {[%clk 0:00:07.3]} 60. Rb1 {[%clk 0:00:10.8]} 60...
Nf5 {[%clk 0:00:07.9]} 61. Kg4 {[%clk 0:00:11.1]} 61... Ne3+ {[%clk 0:00:08.3]}
62. Kf3 {[%clk 0:00:10.9]} 62... Nc4 {[%clk 0:00:09]} 63. Ke2 {[%clk 0:00:10.5]}
63... Rb3 {[%clk 0:00:09.3]} 64. Rh1+ {[%clk 0:00:07.8]} 64... Kg8 {[%clk
0:00:09.2]} 65. Rb1 {[%clk 0:00:08.1]} 65... Na3 {[%clk 0:00:09.4]} 66. Rd1
{[%clk 0:00:07.5]} 66... b1=Q {[%clk 0:00:09.6]} 67. Rd8+ {[%clk 0:00:07.9]}
67... Kh7 {[%clk 0:00:10.1]} 68. Kd2 {[%clk 0:00:06.6]} 68... Qc2+ {[%clk
0:00:09.2]} 69. Ke1 {[%clk 0:00:05]} 69... Rb1+ {[%clk 0:00:10.1]} 70. Rd1
{[%clk 0:00:05.4]} 70... Rxd1# {[%clk 0:00:11]} 0-1

[Event "Early-Titled-Tuesday-Blitz-January-30-2024"]
[Site "Chess.com"]
[Date "2024.01.30"]
[Round "6"]
[White "amanjazu"]
[Black "yaguigor"]
[Result "1-0"]
[WhiteElo "2432"]
[BlackElo "2564"]
[TimeControl "180+1"]
[EndTime "9:10:03 PST"]
[Termination "amanjazu won by resignation"]

1. g3 {[%clk 0:03:00.9]} 1... d5 {[%clk 0:02:38.6]} 2. Bg2 {[%clk 0:03:00.9]}
2... c6 {[%clk 0:02:36.9]} 3. f4 {[%clk 0:03:00.9]} 3... g6 {[%clk 0:02:31.5]}
4. Nf3 {[%clk 0:03:01.2]} 4... Bg7 {[%clk 0:02:31.6]} 5. O-O {[%clk 0:03:02.1]}
5... Nh6 {[%clk 0:02:26.4]} 6. h3 {[%clk 0:03:00.8]} 6... Nf5 {[%clk 0:02:17.6]}
7. Kh2 {[%clk 0:02:54.3]} 7... h5 {[%clk 0:02:14.6]} 8. d3 {[%clk 0:02:45.2]}
8... d4 {[%clk 0:02:11.6]} 9. c3 {[%clk 0:02:43.2]} 9... c5 {[%clk 0:02:05.1]}
10. Qb3 {[%clk 0:02:28.9]} 10... Nc6 {[%clk 0:02:02.6]} 11. Ng5 {[%clk
0:02:13.1]} 11... O-O {[%clk 0:01:59.6]} 12. Ne4 {[%clk 0:02:09.4]} 12... Be6
{[%clk 0:01:00.3]} 13. Qxb7 {[%clk 0:01:32.9]} 13... Bd5 {[%clk 0:01:00]} 14. c4
{[%clk 0:01:25.8]} 14... Rb8 {[%clk 0:00:57.3]} 15. Qa6 {[%clk 0:01:25.8]} 15...
Nb4 {[%clk 0:00:52.4]} 16. Qa4 {[%clk 0:01:25.8]} 16... Bc6 {[%clk 0:00:51]} 17.
Qd1 {[%clk 0:01:26]} 17... Na6 {[%clk 0:00:44.7]} 18. b3 {[%clk 0:00:44.8]}
18... Ne3 {[%clk 0:00:40.6]} 19. Bxe3 {[%clk 0:00:39]} 19... dxe3 {[%clk
0:00:41.5]} 20. Nec3 {[%clk 0:00:32.4]} 20... Bxg2 {[%clk 0:00:38.6]} 21. Kxg2
{[%clk 0:00:33.3]} 21... e5 {[%clk 0:00:24]} 22. f5 {[%clk 0:00:28.3]} 22... e4
{[%clk 0:00:18.2]} 23. Qc1 {[%clk 0:00:11.1]} 23... exd3 {[%clk 0:00:16.4]} 24.
Qxe3 {[%clk 0:00:11.4]} 24... Nb4 {[%clk 0:00:15.5]} 25. exd3 {[%clk 0:00:08]}
25... Nc2 {[%clk 0:00:15.1]} 26. Qf2 {[%clk 0:00:07.6]} 26... Nxa1 {[%clk
0:00:14.4]} 27. f6 {[%clk 0:00:08.5]} 27... Bh6 {[%clk 0:00:13.4]} 28. Ne4
{[%clk 0:00:08.7]} 28... Qxd3 {[%clk 0:00:11.6]} 29. Nbc3 {[%clk 0:00:09.2]}
29... Nc2 {[%clk 0:00:10.2]} 30. Kh2 {[%clk 0:00:07.5]} 30... Nd4 {[%clk
0:00:09.3]} 31. g4 {[%clk 0:00:06]} 31... hxg4 {[%clk 0:00:07.7]} 32. hxg4
{[%clk 0:00:06.9]} 32... Ne6 {[%clk 0:00:06]} 33. Qh4 {[%clk 0:00:06.2]} 33...
Qe3 {[%clk 0:00:04.9]} 34. Re1 {[%clk 0:00:05.3]} 34... Qf4+ {[%clk 0:00:04.2]}
35. Kg2 {[%clk 0:00:05.7]} 35... Rfd8 {[%clk 0:00:04.1]} 36. Rf1 {[%clk
0:00:06.2]} 36... Rd2+ {[%clk 0:00:03.9]} 37. Nxd2 {[%clk 0:00:06.1]} 37...
Qxd2+ {[%clk 0:00:04.8]} 38. Rf2 {[%clk 0:00:06.6]} 38... Bg5 {[%clk 0:00:03.9]}
39. Qh2 {[%clk 0:00:05.8]} 39... Qxc3 {[%clk 0:00:04.2]} 40. Qxb8+ {[%clk
0:00:05.8]} 40... Nf8 {[%clk 0:00:03.3]} 41. Qd6 {[%clk 0:00:03.6]} 41... Qd4
{[%clk 0:00:03]} 42. Qxd4 {[%clk 0:00:03.7]} 42... cxd4 {[%clk 0:00:02.9]} 43.
Rf1 {[%clk 0:00:02.8]} 43... Ne6 {[%clk 0:00:02.9]} 44. Rd1 {[%clk 0:00:03.7]}
44... Bxf6 {[%clk 0:00:01.8]} 45. Kf3 {[%clk 0:00:04.6]} 45... Kg7 {[%clk
0:00:02.6]} 46. Ke4 {[%clk 0:00:05.5]} 46... Bg5 {[%clk 0:00:03.2]} 47. Kd5
{[%clk 0:00:06.4]} 47... Nf4+ {[%clk 0:00:03.3]} 48. Kxd4 {[%clk 0:00:05.7]}
48... Ne6+ {[%clk 0:00:04]} 49. Kd5 {[%clk 0:00:05.8]} 49... Bf4 {[%clk
0:00:04.6]} 50. c5 {[%clk 0:00:06]} 50... g5 {[%clk 0:00:05.5]} 51. Kc6 {[%clk
0:00:06.4]} 51... Kf6 {[%clk 0:00:05.8]} 52. b4 {[%clk 0:00:06.9]} 52... Ke7
{[%clk 0:00:06.1]} 53. b5 {[%clk 0:00:07.8]} 53... Be5 {[%clk 0:00:06.4]} 54. a4
{[%clk 0:00:08.1]} 54... Nd4+ {[%clk 0:00:05.9]} 55. Kd5 {[%clk 0:00:08.4]}
55... f6 {[%clk 0:00:05.2]} 56. Rxd4 {[%clk 0:00:08]} 56... Bxd4 {[%clk
0:00:04.7]} 57. Kxd4 {[%clk 0:00:08.9]} 57... Ke6 {[%clk 0:00:04.7]} 58. Ke4
{[%clk 0:00:09.5]} 58... Ke7 {[%clk 0:00:04]} 59. Kf5 {[%clk 0:00:10.4]} 59...
Kf7 {[%clk 0:00:04.2]} 60. c6 {[%clk 0:00:10.2]} 60... Ke7 {[%clk 0:00:04.3]}
61. a5 {[%clk 0:00:11.1]} 61... Kd6 {[%clk 0:00:04.3]} 62. Kxf6 {[%clk 0:00:12]}
62... a6 {[%clk 0:00:03.5]} 63. b6 {[%clk 0:00:11.5]} 63... Kxc6 {[%clk
0:00:03.8]} 64. Kxg5 {[%clk 0:00:12.4]} 64... Kb7 {[%clk 0:00:04.5]} 65. Kf6
{[%clk 0:00:12.9]} 1-0

[Event "Early-Titled-Tuesday-Blitz-January-30-2024"]
[Site "Chess.com"]
[Date "2024.01.30"]
[Round "6"]
[White "NM_Antelacus"]
[Black "Balla_Tamas"]
[Result "0-1"]
[WhiteElo "2238"]
[BlackElo "2416"]
[TimeControl "180+1"]
[EndTime "9:10:16 PST"]
[Termination "Balla_Tamas won on time"]

1. e4 {[%clk 0:03:00.9]} 1... c5 {[%clk 0:02:59.5]} 2. Nf3 {[%clk 0:03:00.3]}
2... Nc6 {[%clk 0:03:00]} 3. Bb5 {[%clk 0:02:59]} 3... Nf6 {[%clk 0:02:59.9]} 4.
d3 {[%clk 0:02:56.3]} 4... Qa5+ {[%clk 0:02:58.6]} 5. Nc3 {[%clk 0:02:55.7]}
5... Nd4 {[%clk 0:02:56.1]} 6. Bc4 {[%clk 0:02:53.1]} 6... b5 {[%clk 0:02:55.8]}
7. Bb3 {[%clk 0:02:52]} 7... Nxb3 {[%clk 0:02:55.9]} 8. cxb3 {[%clk 0:02:51.2]}
8... e6 {[%clk 0:02:55.9]} 9. O-O {[%clk 0:02:49.9]} 9... d6 {[%clk 0:02:54.8]}
10. Bg5 {[%clk 0:02:33.6]} 10... Be7 {[%clk 0:02:54.1]} 11. d4 {[%clk 0:02:29]}
11... O-O {[%clk 0:02:47.9]} 12. e5 {[%clk 0:02:27.4]} 12... dxe5 {[%clk
0:02:32]} 13. dxe5 {[%clk 0:02:24.3]} 13... Nd5 {[%clk 0:02:28.5]} 14. Nxd5
{[%clk 0:02:20]} 14... Bxg5 {[%clk 0:02:27.2]} 15. Nxg5 {[%clk 0:02:17.4]} 15...
exd5 {[%clk 0:02:27.5]} 16. Qxd5 {[%clk 0:02:15.5]} 16... Bf5 {[%clk 0:02:22.6]}
17. Qxc5 {[%clk 0:02:07.5]} 17... Rac8 {[%clk 0:02:20.6]} 18. Qe3 {[%clk
0:02:05.2]} 18... h6 {[%clk 0:02:20.3]} 19. Nf3 {[%clk 0:02:03.6]} 19... a6
{[%clk 0:02:18.9]} 20. Nd4 {[%clk 0:02:02.3]} 20... Bg6 {[%clk 0:02:16.4]} 21.
a3 {[%clk 0:02:00.8]} 21... Qb6 {[%clk 0:02:11.9]} 22. Rfd1 {[%clk 0:01:57.9]}
22... Rfd8 {[%clk 0:02:07.4]} 23. b4 {[%clk 0:01:53.7]} 23... Kh7 {[%clk
0:02:03.8]} 24. h3 {[%clk 0:01:41.7]} 24... Rd5 {[%clk 0:01:54.7]} 25. Nf3
{[%clk 0:01:35.2]} 25... Qb7 {[%clk 0:01:51.2]} 26. Rxd5 {[%clk 0:01:32.8]}
26... Qxd5 {[%clk 0:01:52.1]} 27. Re1 {[%clk 0:01:31.2]} 27... Re8 {[%clk
0:01:49.6]} 28. Qd4 {[%clk 0:01:21.6]} 28... Qb3 {[%clk 0:01:43.5]} 29. Qc3
{[%clk 0:01:20.3]} 29... Qd5 {[%clk 0:01:42]} 30. Nh4 {[%clk 0:01:14.4]} 30...
Bd3 {[%clk 0:01:27.5]} 31. Re3 {[%clk 0:01:06.7]} 31... Rd8 {[%clk 0:01:22.7]}
32. Nf3 {[%clk 0:01:02.7]} 32... Bc4 {[%clk 0:01:20.9]} 33. Qc2+ {[%clk
0:00:57]} 33... Kg8 {[%clk 0:01:18.3]} 34. Qf5 {[%clk 0:00:56.5]} 34... Qd1+
{[%clk 0:01:09.6]} 35. Re1 {[%clk 0:00:56.2]} 35... Qd5 {[%clk 0:01:09.4]} 36.
Qf4 {[%clk 0:00:51.7]} 36... Qb7 {[%clk 0:00:56.8]} 37. Nh4 {[%clk 0:00:50.3]}
37... Be6 {[%clk 0:00:55.8]} 38. Nf5 {[%clk 0:00:49.2]} 38... Qd7 {[%clk
0:00:54.3]} 39. Nd6 {[%clk 0:00:47.9]} 39... Qc6 {[%clk 0:00:50.8]} 40. Qg3
{[%clk 0:00:42]} 40... Qd5 {[%clk 0:00:49]} 41. Qf3 {[%clk 0:00:40.8]} 41... Qd2
{[%clk 0:00:48.3]} 42. Qe2 {[%clk 0:00:39.7]} 42... Qd5 {[%clk 0:00:47.1]} 43.
Kh1 {[%clk 0:00:39.8]} 43... Bxh3 {[%clk 0:00:46.2]} 44. f4 {[%clk 0:00:36.6]}
44... Bd7 {[%clk 0:00:34.2]} 45. Kh2 {[%clk 0:00:33.7]} 45... Bc6 {[%clk
0:00:34.3]} 46. Qg4 {[%clk 0:00:31.8]} 46... Rxd6 {[%clk 0:00:20.5]} 47. exd6
{[%clk 0:00:29.4]} 47... Qxd6 {[%clk 0:00:21.4]} 48. Qc8+ {[%clk 0:00:26.5]}
48... Kh7 {[%clk 0:00:21.3]} 49. Qf5+ {[%clk 0:00:26.3]} 49... Kg8 {[%clk
0:00:21.8]} 50. Qe5 {[%clk 0:00:26]} 50... Qg6 {[%clk 0:00:21.1]} 51. Re2 {[%clk
0:00:24.4]} 51... Qg4 {[%clk 0:00:15]} 52. Qe3 {[%clk 0:00:22.7]} 52... Qh4+
{[%clk 0:00:13.5]} 53. Kg1 {[%clk 0:00:22]} 53... Bd5 {[%clk 0:00:14.1]} 54. Rf2
{[%clk 0:00:21.8]} 54... Qg4 {[%clk 0:00:12.1]} 55. Qe2 {[%clk 0:00:20.3]} 55...
Qh4 {[%clk 0:00:09.8]} 56. Qe5 {[%clk 0:00:19.7]} 56... Be6 {[%clk 0:00:08.5]}
57. f5 {[%clk 0:00:18.6]} 57... Bc4 {[%clk 0:00:08.9]} 58. Qf4 {[%clk
0:00:17.7]} 58... Qh5 {[%clk 0:00:09]} 59. f6 {[%clk 0:00:16.8]} 59... Qd1+
{[%clk 0:00:08.6]} 60. Kh2 {[%clk 0:00:16.4]} 60... Qh5+ {[%clk 0:00:08.8]} 61.
Kg3 {[%clk 0:00:15.5]} 61... g5 {[%clk 0:00:08.9]} 62. Qg4 {[%clk 0:00:14.3]}
62... Qg6 {[%clk 0:00:09.2]} 63. Kh2 {[%clk 0:00:13.8]} 63... h5 {[%clk
0:00:09.6]} 64. Qf5 {[%clk 0:00:13.1]} 64... Qh6 {[%clk 0:00:09]} 65. Rf3 {[%clk
0:00:12.9]} 65... g4 {[%clk 0:00:09.1]} 66. Rf4 {[%clk 0:00:12.8]} 66... Be6
{[%clk 0:00:07.1]} 67. Qe5 {[%clk 0:00:12.5]} 67... Kh7 {[%clk 0:00:06.5]} 68.
Qe4+ {[%clk 0:00:11.9]} 68... Kg8 {[%clk 0:00:06.4]} 69. Qe5 {[%clk 0:00:12]}
69... h4 {[%clk 0:00:06.7]} 70. Rd4 {[%clk 0:00:10.5]} 70... g3+ {[%clk
0:00:07.2]} 71. Qxg3+ {[%clk 0:00:05.5]} 71... hxg3+ {[%clk 0:00:07]} 72. Kxg3
{[%clk 0:00:06.4]} 72... Qxf6 {[%clk 0:00:07.6]} 73. Rf4 {[%clk 0:00:05.6]}
73... Qxb2 {[%clk 0:00:07.5]} 74. Kh4 {[%clk 0:00:05.1]} 74... Qxa3 {[%clk
0:00:07.7]} 75. Kg5 {[%clk 0:00:05.3]} 75... a5 {[%clk 0:00:07.9]} 76. Kf6
{[%clk 0:00:05.5]} 76... Qc3+ {[%clk 0:00:07.7]} 77. Ke7 {[%clk 0:00:05]} 77...
axb4 {[%clk 0:00:07.8]} 0-1

[Event "Early-Titled-Tuesday-Blitz-January-30-2024"]
[Site "Chess.com"]
[Date "2024.01.30"]
[Round "6"]
[White "maximnovik"]
[Black "SirGerhard"]
[Result "1-0"]
[WhiteElo "2604"]
[BlackElo "2745"]
[TimeControl "180+1"]
[EndTime "9:10:19 PST"]
[Termination "maximnovik won by checkmate"]

1. e4 {[%clk 0:03:00.9]} 1... c5 {[%clk 0:02:59.8]} 2. Nf3 {[%clk 0:03:00.5]}
2... d6 {[%clk 0:03:00.2]} 3. d4 {[%clk 0:03:00.2]} 3... cxd4 {[%clk 0:03:00.6]}
4. Nxd4 {[%clk 0:03:00.6]} 4... Nf6 {[%clk 0:03:01.1]} 5. Nc3 {[%clk 0:03:01.1]}
5... a6 {[%clk 0:03:01.5]} 6. a4 {[%clk 0:03:01.6]} 6... Nc6 {[%clk 0:03:00.8]}
7. Nxc6 {[%clk 0:02:56.8]} 7... bxc6 {[%clk 0:03:00.8]} 8. a5 {[%clk 0:02:57.4]}
8... e5 {[%clk 0:02:59]} 9. Bc4 {[%clk 0:02:53.6]} 9... Be7 {[%clk 0:02:58.2]}
10. O-O {[%clk 0:02:52.6]} 10... O-O {[%clk 0:02:58.6]} 11. Be3 {[%clk
0:02:45.5]} 11... Be6 {[%clk 0:02:58.3]} 12. Bxe6 {[%clk 0:02:28]} 12... fxe6
{[%clk 0:02:58.4]} 13. Qd3 {[%clk 0:02:26.7]} 13... d5 {[%clk 0:02:52.9]} 14.
Bb6 {[%clk 0:02:23.9]} 14... Qe8 {[%clk 0:02:50.2]} 15. Qh3 {[%clk 0:02:15.7]}
15... Bb4 {[%clk 0:02:46.7]} 16. Na2 {[%clk 0:01:53.4]} 16... Bd6 {[%clk
0:02:42.7]} 17. f3 {[%clk 0:01:46.2]} 17... dxe4 {[%clk 0:02:06.1]} 18. fxe4
{[%clk 0:01:43.6]} 18... Nxe4 {[%clk 0:02:06.4]} 19. Rxf8+ {[%clk 0:01:33]}
19... Bxf8 {[%clk 0:02:06.4]} 20. Qe3 {[%clk 0:01:21.5]} 20... Qg6 {[%clk
0:01:55.4]} 21. Re1 {[%clk 0:01:17.7]} 21... Ng5 {[%clk 0:01:55.6]} 22. Nc3
{[%clk 0:01:10]} 22... Qxc2 {[%clk 0:01:40]} 23. Qxg5 {[%clk 0:01:04.7]} 23...
Qxb2 {[%clk 0:01:34]} 24. Qxe5 {[%clk 0:01:00.9]} 24... h6 {[%clk 0:01:30.1]}
25. Qxe6+ {[%clk 0:00:57.6]} 25... Kh8 {[%clk 0:01:30.4]} 26. Ne4 {[%clk
0:00:55]} 26... Bb4 {[%clk 0:01:27.7]} 27. Rf1 {[%clk 0:00:50.9]} 27... Rg8
{[%clk 0:01:23.1]} 28. h3 {[%clk 0:00:45]} 28... Qc2 {[%clk 0:01:19.3]} 29. Nd6
{[%clk 0:00:39]} 29... c5 {[%clk 0:01:04.5]} 30. Nf7+ {[%clk 0:00:38.6]} 30...
Kh7 {[%clk 0:01:04.3]} 31. Ne5 {[%clk 0:00:37.8]} 31... Qe4 {[%clk 0:01:00.8]}
32. Rf4 {[%clk 0:00:32.4]} 32... Qb1+ {[%clk 0:00:36.9]} 33. Kh2 {[%clk
0:00:29.5]} 33... Bd2 {[%clk 0:00:33.6]} 34. Rf3 {[%clk 0:00:28]} 34... Qe4
{[%clk 0:00:29.8]} 35. Qf5+ {[%clk 0:00:23.9]} 35... Qxf5 {[%clk 0:00:29.7]} 36.
Rxf5 {[%clk 0:00:24.3]} 36... Re8 {[%clk 0:00:27.5]} 37. Nc4 {[%clk 0:00:24.2]}
37... Bc3 {[%clk 0:00:22.2]} 38. Bxc5 {[%clk 0:00:23.8]} 38... Re2 {[%clk
0:00:21.9]} 39. Nb6 {[%clk 0:00:21.8]} 39... g5 {[%clk 0:00:19.1]} 40. Nd5
{[%clk 0:00:20.4]} 40... Be5+ {[%clk 0:00:18.3]} 41. Kg1 {[%clk 0:00:20.4]}
41... Bg3 {[%clk 0:00:18.6]} 42. Ne3 {[%clk 0:00:16]} 42... Bf4 {[%clk
0:00:16.3]} 43. Nf1 {[%clk 0:00:15.2]} 43... Rc2 {[%clk 0:00:15.6]} 44. Bb6
{[%clk 0:00:15]} 44... Kg6 {[%clk 0:00:13.6]} 45. Rd5 {[%clk 0:00:15.1]} 45...
h5 {[%clk 0:00:13.4]} 46. g3 {[%clk 0:00:15.4]} 46... Bc1 {[%clk 0:00:11.1]} 47.
Be3 {[%clk 0:00:13.8]} 47... Bxe3+ {[%clk 0:00:09.1]} 48. Nxe3 {[%clk
0:00:13.9]} 48... Rc3 {[%clk 0:00:09.4]} 49. Kf2 {[%clk 0:00:13.9]} 49... Ra3
{[%clk 0:00:04.9]} 50. Kf3 {[%clk 0:00:14.4]} 50... g4+ {[%clk 0:00:02.1]} 51.
hxg4 {[%clk 0:00:13.7]} 51... hxg4+ {[%clk 0:00:03]} 52. Kf4 {[%clk 0:00:14.2]}
52... Ra4+ {[%clk 0:00:03.6]} 53. Ke5 {[%clk 0:00:12.7]} 53... Ra3 {[%clk
0:00:03.4]} 54. Ke4 {[%clk 0:00:13]} 54... Ra4+ {[%clk 0:00:03.8]} 55. Rd4
{[%clk 0:00:12.8]} 55... Rxa5 {[%clk 0:00:04]} 56. Nxg4 {[%clk 0:00:13.1]} 56...
Rg5 {[%clk 0:00:04]} 57. Kf4 {[%clk 0:00:12.9]} 57... Rf5+ {[%clk 0:00:04.4]}
58. Ke3 {[%clk 0:00:13.1]} 58... Rg5 {[%clk 0:00:05]} 59. Kf3 {[%clk 0:00:13.3]}
59... Rf5+ {[%clk 0:00:05.1]} 60. Rf4 {[%clk 0:00:13.7]} 60... Ra5 {[%clk
0:00:05.2]} 61. Re4 {[%clk 0:00:12.6]} 61... Ra3+ {[%clk 0:00:05]} 62. Kf4
{[%clk 0:00:12.6]} 62... a5 {[%clk 0:00:05.3]} 63. Ne5+ {[%clk 0:00:12.8]} 63...
Kg7 {[%clk 0:00:05.3]} 64. Nc4 {[%clk 0:00:13.2]} 64... Ra1 {[%clk 0:00:05.3]}
65. Re5 {[%clk 0:00:12.1]} 65... a4 {[%clk 0:00:05.2]} 66. Ra5 {[%clk
0:00:12.6]} 66... Kg6 {[%clk 0:00:05.7]} 67. Ne5+ {[%clk 0:00:12.6]} 67... Kg7
{[%clk 0:00:05.9]} 68. g4 {[%clk 0:00:13.1]} 68... a3 {[%clk 0:00:06.2]} 69. Kg5
{[%clk 0:00:11.7]} 69... Re1 {[%clk 0:00:04.6]} 70. Ra7+ {[%clk 0:00:12]} 70...
Kg8 {[%clk 0:00:04.8]} 71. Ng6 {[%clk 0:00:09.6]} 71... Re3 {[%clk 0:00:03.1]}
72. Kh6 {[%clk 0:00:08.5]} 72... Rh3+ {[%clk 0:00:02]} 73. Kg5 {[%clk
0:00:08.4]} 73... Rf3 {[%clk 0:00:02.5]} 74. Kh5 {[%clk 0:00:07.5]} 74... Rh3+
{[%clk 0:00:02.6]} 75. Nh4 {[%clk 0:00:06.6]} 75... Rf3 {[%clk 0:00:03.5]} 76.
g5 {[%clk 0:00:06.5]} 76... Rg3 {[%clk 0:00:03.1]} 77. g6 {[%clk 0:00:06.5]}
77... Kf8 {[%clk 0:00:03.2]} 78. Nf5 {[%clk 0:00:06.4]} 78... Rg1 {[%clk
0:00:02]} 79. Ra8# {[%clk 0:00:05.5]} 1-0